[Event "Live Chess"]
[Site "Chess.com"]
[Date "2024.06.01"]
[Round "-"]
[White "CheckThis4"]
[Black "DJ_Lambton"]
[Result "1-0"]
[WhiteElo "2693"]
[BlackElo "1778"]
[TimeControl "300"]
[EndTime "10:17:22 PDT"]
[Termination "CheckThis4 won by resignation"]

1. d4 {[%clk 0:04:57.4]} 1... d5 {[%clk 0:04:59]} 2. Nc3 {[%clk 0:04:56.5]} 2...
Nf6 {[%clk 0:04:58.2]} 3. e4 {[%clk 0:04:56.1]} 3... dxe4 {[%clk 0:04:57.3]} 4.
f3 {[%clk 0:04:54.7]} 4... exf3 {[%clk 0:04:51.8]} 5. Nxf3 {[%clk 0:04:53.1]}
5... e6 {[%clk 0:04:51.3]} 6. Bd3 {[%clk 0:04:46.6]} 6... Bb4 {[%clk 0:04:49.8]}
7. O-O {[%clk 0:04:42.4]} 7... Nbd7 {[%clk 0:04:49.4]} 8. Bg5 {[%clk 0:04:40.5]}
8... Be7 {[%clk 0:04:47.6]} 9. Qd2 {[%clk 0:04:37.2]} 9... b6 {[%clk 0:04:45.9]}
10. Ne5 {[%clk 0:04:23.9]} 10... Bb7 {[%clk 0:04:40.7]} 11. Rae1 {[%clk
0:04:21.4]} 11... Nxe5 {[%clk 0:04:37.3]} 12. dxe5 {[%clk 0:04:20]} 12... Nd5
{[%clk 0:04:36.5]} 13. Nxd5 {[%clk 0:03:44.4]} 13... Bxg5 {[%clk 0:04:28.5]} 14.
Nxc7+ {[%clk 0:03:41.8]} 14... Qxc7 {[%clk 0:04:27.1]} 15. Qxg5 {[%clk
0:03:39.9]} 15... O-O {[%clk 0:04:00.3]} 16. Re3 {[%clk 0:03:35.3]} 16... Qc5
{[%clk 0:03:58]} 17. Kh1 {[%clk 0:03:25.1]} 17... Rad8 {[%clk 0:03:53.2]} 18.
Rh3 {[%clk 0:03:09.8]} 18... Rxd3 {[%clk 0:03:30.7]} 19. cxd3 {[%clk 0:03:04.4]}
19... Qc2 {[%clk 0:03:23.3]} 20. Rg3 {[%clk 0:02:59.5]} 20... g6 {[%clk
0:03:19.4]} 21. h4 {[%clk 0:02:57.5]} 21... h5 {[%clk 0:03:15.9]} 22. Kh2 {[%clk
0:02:43.3]} 22... Ba6 {[%clk 0:03:12.8]} 23. Rff3 {[%clk 0:02:39]} 23... Qe2
{[%clk 0:03:09.4]} 24. Qxh5 {[%clk 0:02:26.4]} 24... Kg7 {[%clk 0:03:02.1]} 25.
Rxf7+ {[%clk 0:02:11.5]} 25... Rxf7 {[%clk 0:03:00.9]} 26. Qxe2 {[%clk
0:02:08.2]} 26... Kg8 {[%clk 0:03:00.1]} 27. Rxg6+ {[%clk 0:02:06.4]} 1-0

[Event "Live Chess"]
[Site "Chess.com"]
[Date "2024.06.01"]
[Round "-"]
[White "blunderabit"]
[Black "14141409"]
[Result "0-1"]
[WhiteElo "1814"]
[BlackElo "2562"]
[TimeControl "300"]
[EndTime "10:17:27 PDT"]
[Termination "14141409 won on time"]

1. e4 {[%clk 0:04:48.7]} 1... c5 {[%clk 0:04:59]} 2. Nf3 {[%clk 0:04:45.8]} 2...
Nc6 {[%clk 0:04:58.6]} 3. Bb5 {[%clk 0:04:41.5]} 3... Nf6 {[%clk 0:04:56.3]} 4.
Nc3 {[%clk 0:04:36.9]} 4... Qc7 {[%clk 0:04:47.3]} 5. Nd5 {[%clk 0:04:22.3]}
5... Nxd5 {[%clk 0:04:45]} 6. exd5 {[%clk 0:04:20.7]} 6... Nd4 {[%clk
0:04:44.1]} 7. Nxd4 {[%clk 0:04:17.1]} 7... cxd4 {[%clk 0:04:43.1]} 8. Qf3
{[%clk 0:03:57.5]} 8... a6 {[%clk 0:04:41]} 9. Bd3 {[%clk 0:03:49.1]} 9... g6
{[%clk 0:04:39.2]} 10. O-O {[%clk 0:03:46.5]} 10... Bg7 {[%clk 0:04:38]} 11. Re1
{[%clk 0:03:43.8]} 11... d6 {[%clk 0:04:32.2]} 12. b3 {[%clk 0:03:42.1]} 12...
O-O {[%clk 0:04:29.9]} 13. Qe2 {[%clk 0:03:37]} 13... e5 {[%clk 0:04:28.1]} 14.
dxe6 {[%clk 0:03:27.7]} 14... fxe6 {[%clk 0:04:26.8]} 15. Ba3 {[%clk 0:03:14.1]}
15... Re8 {[%clk 0:04:16.4]} 16. h4 {[%clk 0:03:04.9]} 16... e5 {[%clk
0:04:15.3]} 17. Be4 {[%clk 0:02:58.2]} 17... Be6 {[%clk 0:04:12.8]} 18. h5
{[%clk 0:02:53.4]} 18... d5 {[%clk 0:04:10.2]} 19. Bf3 {[%clk 0:02:41]} 19... e4
{[%clk 0:04:08.9]} 20. Bg4 {[%clk 0:02:38.5]} 20... d3 {[%clk 0:04:07.1]} 21.
cxd3 {[%clk 0:02:35.7]} 21... Bxa1 {[%clk 0:04:04.8]} 22. Rxa1 {[%clk
0:02:27.3]} 22... Qe5 {[%clk 0:04:01.3]} 23. Re1 {[%clk 0:02:16.3]} 23... Bxg4
{[%clk 0:03:59.6]} 24. Qxg4 {[%clk 0:02:13.9]} 24... Qxh5 {[%clk 0:03:58.1]} 25.
Qd7 {[%clk 0:02:08.1]} 25... Qf5 {[%clk 0:03:55.3]} 26. Qxb7 {[%clk 0:02:01.1]}
26... exd3 {[%clk 0:03:52.3]} 27. Re7 {[%clk 0:01:47.9]} 27... Qf6 {[%clk
0:03:07.9]} 28. Qxd5+ {[%clk 0:00:48.8]} 28... Kh8 {[%clk 0:03:05.1]} 29. Bc5
{[%clk 0:00:34.9]} 29... Rxe7 {[%clk 0:02:48]} 30. Bd4 {[%clk 0:00:18.5]} 30...
Rf8 {[%clk 0:02:42.3]} 31. Bxf6+ {[%clk 0:00:15.7]} 31... Rxf6 {[%clk
0:02:41.4]} 32. Qd8+ {[%clk 0:00:14.4]} 32... Kg7 {[%clk 0:02:41]} 33. Qxe7+
{[%clk 0:00:13.9]} 33... Rf7 {[%clk 0:02:40.6]} 34. Qe5+ {[%clk 0:00:12.9]}
34... Rf6 {[%clk 0:02:39.2]} 35. Qd4 {[%clk 0:00:11]} 35... Kf7 {[%clk
0:02:38.1]} 36. Qxd3 {[%clk 0:00:10.5]} 36... h5 {[%clk 0:02:36.9]} 37. b4
{[%clk 0:00:07.5]} 37... Ke7 {[%clk 0:02:35.2]} 38. a4 {[%clk 0:00:06.7]} 38...
Rd6 {[%clk 0:02:34.1]} 39. Qe3+ {[%clk 0:00:04.3]} 39... Re6 {[%clk 0:02:33.2]}
0-1

[Event "Live Chess"]
[Site "Chess.com"]
[Date "2024.06.01"]
[Round "-"]
[White "sshamil"]
[Black "Ksenia_2013"]
[Result "1-0"]
[WhiteElo "1704"]
[BlackElo "785"]
[TimeControl "300"]
[EndTime "10:17:46 PDT"]
[Termination "sshamil won by checkmate"]

1. g3 {[%clk 0:04:58.1]} 1... d5 {[%clk 0:04:58.1]} 2. Bg2 {[%clk 0:04:57.3]}
2... Be6 {[%clk 0:04:55.5]} 3. Nf3 {[%clk 0:04:56.5]} 3... Nc6 {[%clk
0:04:53.6]} 4. O-O {[%clk 0:04:55.4]} 4... Nf6 {[%clk 0:04:52.4]} 5. d4 {[%clk
0:04:52.9]} 5... g6 {[%clk 0:04:50.3]} 6. Bg5 {[%clk 0:04:51.7]} 6... Bg7 {[%clk
0:04:48.7]} 7. Re1 {[%clk 0:04:50.7]} 7... O-O {[%clk 0:04:46.3]} 8. c3 {[%clk
0:04:47.8]} 8... Ng4 {[%clk 0:04:43.4]} 9. h3 {[%clk 0:04:43.4]} 9... Nxf2
{[%clk 0:04:34]} 10. Kxf2 {[%clk 0:04:36.4]} 10... f6 {[%clk 0:04:15.8]} 11. Bd2
{[%clk 0:04:33.8]} 11... Qd6 {[%clk 0:04:00.2]} 12. Bf4 {[%clk 0:04:30.3]} 12...
Qd7 {[%clk 0:03:50.1]} 13. g4 {[%clk 0:04:23.5]} 13... f5 {[%clk 0:03:41.6]} 14.
Ne5 {[%clk 0:04:12.8]} 14... Qd6 {[%clk 0:03:38.1]} 15. e3 {[%clk 0:03:58.3]}
15... Nxe5 {[%clk 0:03:35]} 16. dxe5 {[%clk 0:03:52.1]} 16... Bxe5 {[%clk
0:03:33.3]} 17. Bxe5 {[%clk 0:03:51.1]} 17... Qxe5 {[%clk 0:03:31.5]} 18. Qd4
{[%clk 0:03:50.1]} 18... Qxd4 {[%clk 0:03:25.6]} 19. exd4 {[%clk 0:03:47.3]}
19... fxg4+ {[%clk 0:03:23.9]} 20. Kg1 {[%clk 0:03:46.4]} 20... gxh3 {[%clk
0:03:22.8]} 21. Bf1 {[%clk 0:03:42.6]} 21... Rf6 {[%clk 0:03:14]} 22. Nd2 {[%clk
0:03:34.3]} 22... Raf8 {[%clk 0:03:10.3]} 23. Re2 {[%clk 0:03:32.5]} 23... Bg4
{[%clk 0:03:03.4]} 24. Rxe7 {[%clk 0:03:26.3]} 24... Rf2 {[%clk 0:02:57.4]} 25.
Nb3 {[%clk 0:03:08.3]} 25... h2+ {[%clk 0:02:54.7]} 26. Kh1 {[%clk 0:03:03.4]}
26... Bf3+ {[%clk 0:02:53.3]} 27. Bg2 {[%clk 0:03:02.8]} 27... Bxg2+ {[%clk
0:02:51.9]} 28. Kxh2 {[%clk 0:03:01.9]} 28... Bf3+ {[%clk 0:02:43.4]} 29. Kg3
{[%clk 0:03:00.2]} 29... Rg2+ {[%clk 0:02:40.6]} 30. Kh3 {[%clk 0:02:57.6]}
30... Bg4+ {[%clk 0:02:35.8]} 31. Kxg2 {[%clk 0:02:54.9]} 31... Bf3+ {[%clk
0:02:31.6]} 32. Kg3 {[%clk 0:02:52.8]} 32... h5 {[%clk 0:02:29.6]} 33. Nc5
{[%clk 0:02:49.8]} 33... g5 {[%clk 0:02:28.5]} 34. Ne6 {[%clk 0:02:48.5]} 34...
h4+ {[%clk 0:02:26.8]} 35. Kh2 {[%clk 0:02:45.9]} 35... Rf6 {[%clk 0:02:23]} 36.
Nxg5 {[%clk 0:02:41.4]} 36... Rg6 {[%clk 0:02:19.1]} 37. Rg1 {[%clk 0:02:39.8]}
37... Be2 {[%clk 0:02:13.1]} 38. Rxe2 {[%clk 0:02:37.2]} 38... Rf6 {[%clk
0:02:08.8]} 39. Re8+ {[%clk 0:02:34.4]} 39... Kg7 {[%clk 0:02:05.3]} 40. Ne4+
{[%clk 0:02:33.4]} 40... Rg6 {[%clk 0:02:02.3]} 41. Rxg6+ {[%clk 0:02:32.2]}
41... Kxg6 {[%clk 0:02:01.1]} 42. Re6+ {[%clk 0:02:28.1]} 42... Kf7 {[%clk
0:01:59.7]} 43. Ng5+ {[%clk 0:02:27.1]} 43... Kg7 {[%clk 0:01:58.1]} 44. Nf3
{[%clk 0:02:26.3]} 44... Kf7 {[%clk 0:01:56.5]} 45. Rh6 {[%clk 0:02:25.3]} 45...
Kg7 {[%clk 0:01:55]} 46. Rh5 {[%clk 0:02:24.5]} 46... Kg6 {[%clk 0:01:53.9]} 47.
Rxh4 {[%clk 0:02:23.7]} 47... Kf5 {[%clk 0:01:52]} 48. Kg3 {[%clk 0:02:21.7]}
48... Kg6 {[%clk 0:01:50.3]} 49. Ne5+ {[%clk 0:02:19.6]} 49... Kg5 {[%clk
0:01:49.3]} 50. Rf4 {[%clk 0:02:17.7]} 50... Kh5 {[%clk 0:01:47.3]} 51. Rf5+
{[%clk 0:02:14.9]} 51... Kh6 {[%clk 0:01:44.8]} 52. Kg4 {[%clk 0:02:14.4]} 52...
Kh7 {[%clk 0:01:41.9]} 53. Kg5 {[%clk 0:02:12.6]} 53... Kg7 {[%clk 0:01:39.6]}
54. Rf7+ {[%clk 0:02:11.7]} 54... Kg8 {[%clk 0:01:38.2]} 55. Kg6 {[%clk
0:02:11.1]} 55... Kh8 {[%clk 0:01:36.4]} 56. Rg7 {[%clk 0:02:09.2]} 56... c5
{[%clk 0:01:32.8]} 57. Nf7# {[%clk 0:02:09.1]} 1-0

[Event "Live Chess"]
[Site "Chess.com"]
[Date "2024.06.01"]
[Round "-"]
[White "Yarigo"]
[Black "Zhevzh1k7"]
[Result "1-0"]
[WhiteElo "2389"]
[BlackElo "1072"]
[TimeControl "300"]
[EndTime "10:17:57 PDT"]
[Termination "Yarigo won by checkmate"]

1. d4 {[%clk 0:04:50.1]} 1... Nf6 {[%clk 0:04:55.8]} 2. Nf3 {[%clk 0:04:49.5]}
2... e6 {[%clk 0:04:54.3]} 3. Bf4 {[%clk 0:04:47.3]} 3... c6 {[%clk 0:04:51]} 4.
Nbd2 {[%clk 0:04:44.5]} 4... Qb6 {[%clk 0:04:49.5]} 5. Rb1 {[%clk 0:04:41.7]}
5... g6 {[%clk 0:04:48.2]} 6. e4 {[%clk 0:04:38.7]} 6... Bg7 {[%clk 0:04:46.9]}
7. Bd3 {[%clk 0:04:36.6]} 7... d5 {[%clk 0:04:40.8]} 8. c3 {[%clk 0:04:31]} 8...
Nbd7 {[%clk 0:04:37.2]} 9. e5 {[%clk 0:04:26.9]} 9... Nh5 {[%clk 0:04:27.9]} 10.
Be3 {[%clk 0:04:23.5]} 10... c5 {[%clk 0:04:22.6]} 11. g4 {[%clk 0:04:20.4]}
11... cxd4 {[%clk 0:04:21]} 12. cxd4 {[%clk 0:04:18.6]} 12... f6 {[%clk
0:03:51.9]} 13. gxh5 {[%clk 0:04:14.9]} 13... fxe5 {[%clk 0:03:48.9]} 14. dxe5
{[%clk 0:04:12.5]} 14... Qc7 {[%clk 0:03:36.6]} 15. Rc1 {[%clk 0:04:09]} 15...
Qd8 {[%clk 0:03:32.5]} 16. hxg6 {[%clk 0:04:03.6]} 16... hxg6 {[%clk 0:03:30.4]}
17. Bxg6+ {[%clk 0:04:00.6]} 17... Kf8 {[%clk 0:03:28.5]} 18. Bd4 {[%clk
0:03:50.2]} 18... Rh6 {[%clk 0:03:15.5]} 19. Rg1 {[%clk 0:03:38.1]} 19... Nb6
{[%clk 0:03:03.7]} 20. Nb3 {[%clk 0:02:55.9]} 20... Bd7 {[%clk 0:02:40.6]} 21.
Nc5 {[%clk 0:02:51.7]} 21... Nc4 {[%clk 0:02:33.2]} 22. b3 {[%clk 0:02:35.5]}
22... Qa5+ {[%clk 0:02:27.3]} 23. Ke2 {[%clk 0:02:30.6]} 23... Na3 {[%clk
0:02:15.9]} 24. Nxd7+ {[%clk 0:02:25.4]} 24... Ke7 {[%clk 0:02:06.7]} 25. Nc5
{[%clk 0:02:22.4]} 25... b6 {[%clk 0:02:00.9]} 26. Nd3 {[%clk 0:02:19.6]} 26...
Rf8 {[%clk 0:01:52.4]} 27. Rc7+ {[%clk 0:02:14.3]} 27... Kd8 {[%clk 0:01:49.4]}
28. Rxg7 {[%clk 0:02:12.2]} 28... Nb5 {[%clk 0:01:41.6]} 29. Qc2 {[%clk
0:02:06.6]} 29... Nxd4+ {[%clk 0:01:31.4]} 30. Nxd4 {[%clk 0:02:02.7]} 30... Qa6
{[%clk 0:01:17]} 31. Qc7# {[%clk 0:01:57.7]} 1-0

[Event "Live Chess"]
[Site "Chess.com"]
[Date "2024.06.01"]
[Round "-"]
[White "EgbertIII"]
[Black "defenderalist"]
[Result "1-0"]
[WhiteElo "1452"]
[BlackElo "1486"]
[TimeControl "300"]
[EndTime "10:17:58 PDT"]
[Termination "EgbertIII won by resignation"]

1. b4 {[%clk 0:04:55.3]} 1... Nf6 {[%clk 0:04:53.4]} 2. Bb2 {[%clk 0:04:54]}
2... e6 {[%clk 0:04:52.8]} 3. a3 {[%clk 0:04:52.6]} 3... d5 {[%clk 0:04:50.9]}
4. e3 {[%clk 0:04:51.5]} 4... c5 {[%clk 0:04:50.2]} 5. bxc5 {[%clk 0:04:49.6]}
5... Bxc5 {[%clk 0:04:49.1]} 6. Nf3 {[%clk 0:04:48.4]} 6... O-O {[%clk
0:04:47.5]} 7. c4 {[%clk 0:04:47.2]} 7... dxc4 {[%clk 0:04:44.6]} 8. Bxc4 {[%clk
0:04:45.2]} 8... Nc6 {[%clk 0:04:42.4]} 9. O-O {[%clk 0:04:42.7]} 9... a6 {[%clk
0:04:41.4]} 10. Nc3 {[%clk 0:04:38.3]} 10... b5 {[%clk 0:04:39.6]} 11. Bb3
{[%clk 0:04:35]} 11... Bb7 {[%clk 0:04:38.6]} 12. d4 {[%clk 0:04:33.1]} 12...
Bb6 {[%clk 0:04:33.7]} 13. Rc1 {[%clk 0:04:29.9]} 13... Na5 {[%clk 0:04:32.2]}
14. Ba2 {[%clk 0:04:26.9]} 14... Rc8 {[%clk 0:04:29.5]} 15. Ne2 {[%clk
0:04:10.9]} 15... Bxf3 {[%clk 0:04:25.8]} 16. gxf3 {[%clk 0:04:08.8]} 16... Rxc1
{[%clk 0:04:18.2]} 17. Qxc1 {[%clk 0:04:05.2]} 17... Nd5 {[%clk 0:04:04.6]} 18.
Ng3 {[%clk 0:03:55.6]} 18... Qd7 {[%clk 0:03:36.3]} 19. e4 {[%clk 0:03:42.2]}
19... Ne7 {[%clk 0:03:26.7]} 20. Kh1 {[%clk 0:03:33.5]} 20... Rc8 {[%clk
0:03:24.7]} 21. Qg5 {[%clk 0:03:28.5]} 21... h6 {[%clk 0:02:59.7]} 22. Qg4
{[%clk 0:03:22]} 22... Bxd4 {[%clk 0:02:50.5]} 23. Bxd4 {[%clk 0:03:14.9]} 23...
Qxd4 {[%clk 0:02:48.4]} 24. Nh5 {[%clk 0:03:09.7]} 24... Ng6 {[%clk 0:02:37.2]}
25. Bxe6 {[%clk 0:03:06.5]} 25... Rc6 {[%clk 0:02:21.9]} 26. Bd5 {[%clk
0:02:49]} 26... Rc2 {[%clk 0:01:53]} 27. Qxg6 {[%clk 0:02:42.6]} 27... Kh8
{[%clk 0:01:27.9]} 28. Qxf7 {[%clk 0:02:22.5]} 1-0

[Event "Live Chess"]
[Site "Chess.com"]
[Date "2024.06.01"]
[Round "-"]
[White "GwaryTek"]
[Black "jimwad"]
[Result "1-0"]
[WhiteElo "1895"]
[BlackElo "1260"]
[TimeControl "300"]
[EndTime "10:18:06 PDT"]
[Termination "GwaryTek won by checkmate"]

1. d4 {[%clk 0:04:58.6]} 1... d5 {[%clk 0:04:58.9]} 2. e4 {[%clk 0:04:57.6]}
2... dxe4 {[%clk 0:04:56.7]} 3. Nc3 {[%clk 0:04:57.3]} 3... Nf6 {[%clk
0:04:55.1]} 4. f3 {[%clk 0:04:57.2]} 4... exf3 {[%clk 0:04:52.9]} 5. Nxf3 {[%clk
0:04:57.1]} 5... Nc6 {[%clk 0:04:50.6]} 6. Bc4 {[%clk 0:04:54.9]} 6... Bg4
{[%clk 0:04:46.9]} 7. d5 {[%clk 0:04:54]} 7... Ne5 {[%clk 0:04:39.9]} 8. Nxe5
{[%clk 0:04:52.6]} 8... Bxd1 {[%clk 0:04:37.1]} 9. Bb5+ {[%clk 0:04:51.4]} 9...
c6 {[%clk 0:04:32.2]} 10. dxc6 {[%clk 0:04:50.1]} 10... Qd4 {[%clk 0:04:16.4]}
11. cxb7+ {[%clk 0:04:47.1]} 11... Nd7 {[%clk 0:04:09.4]} 12. bxa8=Q# {[%clk
0:04:43.2]} 1-0

[Event "Live Chess"]
[Site "Chess.com"]
[Date "2024.06.01"]
[Round "-"]
[White "KeithArkell"]
[Black "MellowAesthetic"]
[Result "1-0"]
[WhiteElo "2517"]
[BlackElo "2067"]
[TimeControl "300"]
[EndTime "10:18:14 PDT"]
[Termination "KeithArkell won by resignation"]

1. d4 {[%clk 0:04:57.6]} 1... Nf6 {[%clk 0:04:58.8]} 2. Nf3 {[%clk 0:04:56.9]}
2... g6 {[%clk 0:04:58.1]} 3. c4 {[%clk 0:04:56.3]} 3... Bg7 {[%clk 0:04:57.5]}
4. g3 {[%clk 0:04:55.9]} 4... O-O {[%clk 0:04:56.8]} 5. Bg2 {[%clk 0:04:55.5]}
5... d6 {[%clk 0:04:56.4]} 6. O-O {[%clk 0:04:54.8]} 6... Nbd7 {[%clk
0:04:55.9]} 7. d5 {[%clk 0:04:54.4]} 7... Nb6 {[%clk 0:04:51.2]} 8. Nbd2 {[%clk
0:04:52.9]} 8... c5 {[%clk 0:04:33.7]} 9. dxc6 {[%clk 0:04:50.9]} 9... bxc6
{[%clk 0:04:32.1]} 10. Nd4 {[%clk 0:04:50.2]} 10... Bb7 {[%clk 0:04:13.6]} 11.
Nxc6 {[%clk 0:04:48.4]} 11... Qc7 {[%clk 0:04:07.5]} 12. Na5 {[%clk 0:04:44.8]}
12... Bxg2 {[%clk 0:04:06.2]} 13. Kxg2 {[%clk 0:04:44.1]} 13... d5 {[%clk
0:03:31.3]} 14. cxd5 {[%clk 0:04:37.1]} 14... Nfxd5 {[%clk 0:03:30.3]} 15. Rb1
{[%clk 0:04:31.7]} 15... Nb4 {[%clk 0:03:28.7]} 16. a3 {[%clk 0:04:23.1]} 16...
Nc2 {[%clk 0:02:51.5]} 17. b4 {[%clk 0:04:09.1]} 17... Rfd8 {[%clk 0:02:26.2]}
18. Bb2 {[%clk 0:04:01.8]} 18... Bxb2 {[%clk 0:02:24.4]} 19. Rxb2 {[%clk
0:04:00.7]} 19... Nxa3 {[%clk 0:02:24.3]} 20. Qb3 {[%clk 0:03:53.4]} 20... Nb5
{[%clk 0:02:20.7]} 21. e3 {[%clk 0:03:37.9]} 21... Qe5 {[%clk 0:01:49]} 22. Rc2
{[%clk 0:03:24.4]} 22... Qd5+ {[%clk 0:01:24]} 23. Qxd5 {[%clk 0:03:22.7]} 23...
Nxd5 {[%clk 0:01:23.9]} 24. Nc6 {[%clk 0:03:16.1]} 24... Rd7 {[%clk 0:01:20.4]}
25. Rc5 {[%clk 0:03:12.7]} 25... Nxe3+ {[%clk 0:01:07.9]} 26. fxe3 {[%clk
0:03:04.3]} 26... Rxd2+ {[%clk 0:01:07.1]} 27. Rf2 {[%clk 0:03:03.9]} 27...
Rxf2+ {[%clk 0:01:05.7]} 28. Kxf2 {[%clk 0:03:03.8]} 28... Nd6 {[%clk
0:00:59.9]} 29. Ra5 {[%clk 0:02:54.8]} 29... Nc8 {[%clk 0:00:53.3]} 30. b5
{[%clk 0:02:52.7]} 30... Kf8 {[%clk 0:00:52.1]} 31. g4 {[%clk 0:02:44]} 31... g5
{[%clk 0:00:46.1]} 32. Kf3 {[%clk 0:02:37.6]} 32... Ke8 {[%clk 0:00:44.7]} 33.
h4 {[%clk 0:02:32.7]} 33... gxh4 {[%clk 0:00:32]} 34. Ra1 {[%clk 0:02:31.7]}
34... Kd7 {[%clk 0:00:29.6]} 35. Rh1 {[%clk 0:02:29.6]} 35... a6 {[%clk
0:00:20.2]} 36. Nd4 {[%clk 0:02:14.9]} 36... axb5 {[%clk 0:00:19.1]} 37. Nxb5
{[%clk 0:02:14]} 37... Ra5 {[%clk 0:00:17.5]} 38. Nd4 {[%clk 0:02:11.2]} 38...
h5 {[%clk 0:00:16.7]} 39. Rxh4 {[%clk 0:02:06]} 39... hxg4+ {[%clk 0:00:16.1]}
40. Rxg4 {[%clk 0:02:05]} 40... e5 {[%clk 0:00:15.3]} 41. Nb3 {[%clk 0:01:50]}
41... Ra3 {[%clk 0:00:14.6]} 42. Nc5+ {[%clk 0:01:46.3]} 42... Ke7 {[%clk
0:00:14.1]} 43. Rb4 {[%clk 0:01:41.3]} 43... Nd6 {[%clk 0:00:13]} 44. Rh4 {[%clk
0:01:27.4]} 44... Ra5 {[%clk 0:00:09.7]} 45. Nb3 {[%clk 0:01:22.9]} 45... Ra3
{[%clk 0:00:08.8]} 46. Rb4 {[%clk 0:01:16]} 46... Ke6 {[%clk 0:00:06.3]} 47. Rb6
{[%clk 0:01:06.2]} 47... Kd5 {[%clk 0:00:05.1]} 48. Nd2 {[%clk 0:01:02.5]} 48...
f5 {[%clk 0:00:03.6]} 49. Rxd6+ {[%clk 0:00:59.9]} 49... Kxd6 {[%clk 0:00:02.3]}
50. Nc4+ {[%clk 0:00:59.6]} 50... Kd5 {[%clk 0:00:01.7]} 51. Nxa3 {[%clk
0:00:59.5]} 51... f4 {[%clk 0:00:01.1]} 52. e4+ {[%clk 0:00:57.7]} 1-0

[Event "Live Chess"]
[Site "Chess.com"]
[Date "2024.06.01"]
[Round "-"]
[White "DarranAS"]
[Black "halfberg"]
[Result "0-1"]
[WhiteElo "1521"]
[BlackElo "1907"]
[TimeControl "300"]
[EndTime "10:18:16 PDT"]
[Termination "halfberg won by checkmate"]

1. e4 {[%clk 0:04:52.3]} 1... c5 {[%clk 0:04:57.2]} 2. Nf3 {[%clk 0:04:50.4]}
2... Nc6 {[%clk 0:04:56.3]} 3. c4 {[%clk 0:04:44]} 3... e6 {[%clk 0:04:53.8]} 4.
Nc3 {[%clk 0:04:41.7]} 4... Nge7 {[%clk 0:04:49.6]} 5. d3 {[%clk 0:04:35.2]}
5... g6 {[%clk 0:04:47.6]} 6. Be3 {[%clk 0:04:28.7]} 6... d6 {[%clk 0:04:45.5]}
7. Be2 {[%clk 0:04:24.1]} 7... Bg7 {[%clk 0:04:44.2]} 8. O-O {[%clk 0:04:22.6]}
8... O-O {[%clk 0:04:43.2]} 9. Qd2 {[%clk 0:04:18]} 9... Nd4 {[%clk 0:04:39.5]}
10. Bh6 {[%clk 0:04:09.6]} 10... Nec6 {[%clk 0:04:17.1]} 11. Bxg7 {[%clk
0:04:05.3]} 11... Kxg7 {[%clk 0:04:15.3]} 12. Bd1 {[%clk 0:03:53.3]} 12... Nxf3+
{[%clk 0:04:09.5]} 13. Bxf3 {[%clk 0:03:51.6]} 13... Nd4 {[%clk 0:04:09.1]} 14.
Bd1 {[%clk 0:03:36.7]} 14... Bd7 {[%clk 0:04:06.1]} 15. Ne2 {[%clk 0:03:33.7]}
15... Qf6 {[%clk 0:04:03.1]} 16. Nxd4 {[%clk 0:03:29.9]} 16... Qxd4 {[%clk
0:03:57.8]} 17. Bf3 {[%clk 0:03:19.6]} 17... e5 {[%clk 0:03:55.6]} 18. Rab1
{[%clk 0:03:15.4]} 18... Rab8 {[%clk 0:03:48.7]} 19. b4 {[%clk 0:03:11.9]} 19...
b5 {[%clk 0:03:41.9]} 20. bxc5 {[%clk 0:03:08.4]} 20... Qxc5 {[%clk 0:03:38.1]}
21. cxb5 {[%clk 0:02:47.2]} 21... Bxb5 {[%clk 0:03:33.2]} 22. Rfc1 {[%clk
0:02:45.2]} 22... Qd4 {[%clk 0:03:26.4]} 23. Rb3 {[%clk 0:02:33.9]} 23... Ba4
{[%clk 0:03:10.4]} 24. Rxb8 {[%clk 0:02:23.9]} 24... Rxb8 {[%clk 0:03:10.3]} 25.
h4 {[%clk 0:02:04]} 25... Rb2 {[%clk 0:03:03.5]} 26. Qa5 {[%clk 0:01:35.6]}
26... Qxf2+ {[%clk 0:02:55.6]} 27. Kh2 {[%clk 0:01:31.5]} 27... Qxh4+ {[%clk
0:02:54.2]} 28. Kg1 {[%clk 0:01:30.6]} 28... Qf2+ {[%clk 0:02:35.8]} 29. Kh2
{[%clk 0:01:29]} 29... Qxf3 {[%clk 0:02:10.1]} 30. Rg1 {[%clk 0:01:14.1]} 30...
Qf4+ {[%clk 0:02:00.9]} 31. Kh3 {[%clk 0:01:10.7]} 31... Bd7+ {[%clk 0:01:57.5]}
32. g4 {[%clk 0:01:09.6]} 32... Rh2# {[%clk 0:01:54.7]} 0-1

[Event "Live Chess"]
[Site "Chess.com"]
[Date "2024.06.01"]
[Round "-"]
[White "SvitlanaJ"]
[Black "updatedopenings2024"]
[Result "0-1"]
[WhiteElo "593"]
[BlackElo "1805"]
[TimeControl "300"]
[EndTime "10:18:16 PDT"]
[Termination "updatedopenings2024 won by resignation"]

1. e4 {[%clk 0:04:54.3]} 1... c6 {[%clk 0:04:59.9]} 2. d4 {[%clk 0:04:52.4]}
2... d5 {[%clk 0:04:59.8]} 3. e5 {[%clk 0:04:50.5]} 3... c5 {[%clk 0:04:58.3]}
4. c3 {[%clk 0:04:46.5]} 4... Nc6 {[%clk 0:04:56.9]} 5. Nf3 {[%clk 0:04:44.1]}
5... Bg4 {[%clk 0:04:55.8]} 6. Be2 {[%clk 0:04:42.4]} 6... Bxf3 {[%clk
0:04:54.9]} 7. Bxf3 {[%clk 0:04:41]} 7... cxd4 {[%clk 0:04:54.8]} 8. cxd4 {[%clk
0:04:39.6]} 8... e6 {[%clk 0:04:54.7]} 9. Be2 {[%clk 0:04:31.7]} 9... Qb6 {[%clk
0:04:52.9]} 10. Be3 {[%clk 0:04:17.9]} 10... Nge7 {[%clk 0:04:48.4]} 11. Nc3
{[%clk 0:04:15.4]} 11... Nf5 {[%clk 0:04:47.4]} 12. Bb5 {[%clk 0:04:13.4]} 12...
Bb4 {[%clk 0:04:40.4]} 13. O-O {[%clk 0:03:51.1]} 13... Bxc3 {[%clk 0:04:36.8]}
14. Bxc6+ {[%clk 0:03:45.3]} 14... Qxc6 {[%clk 0:04:36.7]} 15. bxc3 {[%clk
0:03:42.3]} 15... O-O {[%clk 0:04:35.6]} 16. Rc1 {[%clk 0:03:30.5]} 16... b5
{[%clk 0:04:32.8]} 17. g4 {[%clk 0:02:56.3]} 17... Ne7 {[%clk 0:04:15.5]} 18.
Bg5 {[%clk 0:02:44.6]} 18... Nc8 {[%clk 0:04:10]} 19. Qf3 {[%clk 0:02:28.5]}
19... f6 {[%clk 0:04:03.2]} 20. Bh6 {[%clk 0:02:18.1]} 20... gxh6 {[%clk
0:03:55.4]} 21. Qh3 {[%clk 0:02:10.7]} 21... Qe8 {[%clk 0:03:49.7]} 22. Qxh6
{[%clk 0:02:07.4]} 22... Qg6 {[%clk 0:03:48.5]} 23. Qh3 {[%clk 0:01:40.7]} 23...
fxe5 {[%clk 0:03:45.3]} 24. dxe5 {[%clk 0:01:31.9]} 24... Ne7 {[%clk 0:03:44.1]}
25. Rb1 {[%clk 0:01:15.1]} 25... a6 {[%clk 0:03:42.3]} 26. f4 {[%clk 0:01:00.7]}
26... Rxf4 {[%clk 0:03:36.4]} 27. Rxf4 {[%clk 0:00:57.8]} 27... Qxb1+ {[%clk
0:03:35.1]} 28. Rf1 {[%clk 0:00:49]} 28... Qe4 {[%clk 0:03:33.6]} 29. g5 {[%clk
0:00:40.8]} 29... Nf5 {[%clk 0:03:30]} 30. Qh5 {[%clk 0:00:28.6]} 30... Qh4
{[%clk 0:03:19.1]} 31. Qxh4 {[%clk 0:00:18.1]} 31... Nxh4 {[%clk 0:03:19]} 32.
Rf6 {[%clk 0:00:15.5]} 32... Re8 {[%clk 0:03:17.8]} 33. g6 {[%clk 0:00:13.9]}
33... Nxg6 {[%clk 0:03:17.2]} 0-1